fUST/lending_fUST_20250827
["ID","MTS","AMOUNT","RATE_DAILY","PERIOD"]
[381561172,1756284640662,-1636.2,0.00023166,2]
[381561173,1756284640671,-480.0,0.00023166,2]
[381561174,1756284640680,-480.0,0.00023166,2]
[381561175,1756284640689,-540.26,0.00023166,2]
[381561176,1756284640699,-480.0,0.00023166,2]
[381561177,1756284640708,-731.94,0.00023166,2]
[381561178,1756284640717,-1802.88,0.00023166,2]
[381561179,1756284640727,-463.78472532,0.00023166,2]
[381561180,1756284640736,-480.0,0.00023166,2]
[381561181,1756284640745,-781.32,0.00023166,2]
[381561182,1756284640754,-3234.33,0.00023166,2]
[381561183,1756284640763,-480.0,0.00023166,2]
[381561184,1756284640773,-933.62,0.00023166,2]
[381561185,1756284640782,-480.0,0.00023166,2]
[381561186,1756284640791,-480.0,0.00023166,2]
[381561187,1756284640800,-480.0,0.00023166,2]
[381561188,1756284640809,-525.76,0.00023166,2]
[381561189,1756284640818,-480.0,0.00023166,2]
[381561190,1756284640828,-639.21,0.00023166,2]
[381561191,1756284640837,-410.06695529,0.00023166,2]
[381561192,1756284640848,-484.88,0.00023166,2]
[381561193,1756284640858,-2772.94,0.00023166,2]
[381561194,1756284640867,-2493.98,0.00023166,2]
[381561195,1756284640876,-480.0,0.00023166,2]
[381561196,1756284640885,-1030.73,0.00023166,2]
[381561197,1756284640894,-480.0,0.00023166,2]
[381561198,1756284640904,-3554.1,0.00023166,2]
[381561199,1756284640913,-1519.01,0.00023166,2]
[381561200,1756284640922,-480.0,0.00023166,2]
[381561201,1756284640932,-480.0,0.00023166,2]
[381561202,1756284640941,-1056.71,0.00023166,2]
[381561203,1756284640951,-480.0,0.00023166,2]
[381561204,1756284640960,-598.74,0.00023166,2]
[381561205,1756284640969,-845.79,0.00023166,2]
[381561206,1756284640979,-480.0,0.00023166,2]
[381561207,1756284640989,-480.0,0.00023166,2]
[381561208,1756284640999,-480.0,0.00023166,2]
[381561209,1756284641008,-480.0,0.00023166,2]
[381561210,1756284641017,-480.0,0.00023166,2]
[381561211,1756284641026,-2741.24,0.00023166,2]
[381561212,1756284641035,-699.05,0.00023166,2]
[381561213,1756284641044,-480.0,0.00023166,2]
[381561214,1756284641053,-509.04,0.00023166,2]
[381561215,1756284641063,-992.31,0.00023166,2]
[381561216,1756284641072,-3042.2303728,0.00023166,2]
[381561217,1756284641082,-480.0,0.00023166,2]
[381561218,1756284641096,-480.0,0.00023166,2]
[381561219,1756284641105,-798.72,0.00023166,2]
[381561220,1756284641115,-480.0,0.00023166,2]
[381561221,1756284641123,-1326.73,0.00023166,2]
[381561222,1756284641133,-480.0,0.00023166,2]
[381561223,1756284641143,-853.39,0.00023166,2]
[381561224,1756284641152,-1158.64,0.00023166,2]
[381561225,1756284641161,-951.91,0.00023166,2]
[381561226,1756284641172,-480.0,0.00023166,2]
[381561227,1756284641182,-1170.95,0.00023166,2]
[381561228,1756284641191,-500.0,0.00023166,2]
[381561229,1756284641200,-500.0,0.00023166,2]
[381561230,1756284641209,-500.0,0.00023166,2]
[381561231,1756284641218,-500.0,0.00023166,2]
[381561232,1756284641228,-500.0,0.00023166,2]
[381561233,1756284641237,-500.0,0.00023166,2]
[381561234,1756284641246,-500.0,0.00023166,2]
[381561235,1756284641256,-229.69697384,0.00023166,2]
[381561237,1756284641265,-500.0,0.00023166,2]
[381561239,1756284641274,-500.0,0.00023166,2]
[381561241,1756284641284,-500.0,0.00023166,2]
[381561242,1756284641293,-500.0,0.00023166,2]
[381561244,1756284641302,-500.0,0.00023166,2]
[381561246,1756284641311,-500.0,0.00023166,2]
[381561248,1756284641320,-500.0,0.00023166,2]
[381561250,1756284641329,-160.0,0.00023167,2]
[381561252,1756284641338,-26487.5156424,0.00023167,2]
[381561253,1756284641347,-3412.7884232,0.00023262,2]
[381561255,1756284641357,-75656.18,0.000233,7]
[381561257,1756284641366,-480.0,0.00023351,2]
[381561259,1756284641375,-1732.12,0.00023351,2]
[381561261,1756284641385,-739.39,0.00023351,2]
[381561263,1756284641393,-2321.17,0.00023351,2]
[381561264,1756284641403,-5000.0,0.00023351,2]
[381561266,1756284641411,-480.0,0.00023351,2]
[381561268,1756284641421,-480.0,0.00023351,2]
[381561270,1756284641430,-2303.44,0.00023351,2]
[381561272,1756284641439,-2700.34,0.00023351,2]
[381561273,1756284641448,-4014.6,0.00023351,2]
[381561275,1756284641457,-480.0,0.00023351,2]
[381561277,1756284641467,-480.0,0.00023351,2]
[381561279,1756284641476,-4501.99,0.00023351,2]
[381561281,1756284641486,-933.51,0.00023351,2]
[381561283,1756284641495,-480.0,0.00023351,2]
[381561284,1756284641504,-562.37,0.00023351,2]
[381561286,1756284641513,-5472.01,0.00023351,2]
[381561288,1756284641522,-1817.38,0.00023351,2]
[381561290,1756284641532,-721.22,0.00023351,2]
[381561292,1756284641541,-531.27,0.00023351,2]
[381561294,1756284641551,-480.0,0.00023351,2]
[381561295,1756284641560,-480.0,0.00023351,2]
[381561297,1756284641570,-791.08,0.00023351,2]
[381561299,1756284641579,-3031.73177968,0.00023353,2]
[381561301,1756284641588,-3058.31046802,0.00023363,2]
[381561303,1756284641597,-482.88986836,0.00023438,2]
[381561305,1756284641607,-480.0,0.00023438,2]
[381561306,1756284641616,-480.0,0.00023438,2]
[381561308,1756284641626,-480.0,0.00023438,2]
[381561310,1756284641639,-480.0,0.00023438,2]
[381561312,1756284641648,-480.0,0.00023438,2]
[381561314,1756284641657,-480.0,0.00023438,2]
[381561316,1756284641666,-480.0,0.00023438,2]
[381561318,1756284641675,-500.0,0.00023439,2]
[381561319,1756284641684,-480.0,0.00023439,2]
[381561321,1756284641694,-481.48896193,0.00023439,2]
[381561323,1756284641703,-611.26,0.00023439,2]
[381561325,1756284641712,-480.0,0.00023439,2]
[381561327,1756284641723,-1384.25,0.00023439,2]
[381561329,1756284641732,-480.0,0.00023439,2]
[381561331,1756284641742,-480.0,0.00023439,2]
[381561332,1756284641751,-2127.62,0.00023439,2]
[381561334,1756284641761,-3109.7,0.00023439,2]
[381561336,1756284641770,-4787.12,0.00023439,2]
[381561338,1756284641780,-480.0,0.0002344,2]
[381561340,1756284641789,-480.0,0.0002344,2]
[381561341,1756284641799,-480.0,0.0002344,2]
[381561343,1756284641808,-480.0,0.0002344,2]
[381561345,1756284641818,-1460.05,0.0002344,2]
[381561347,1756284641827,-831.06,0.0002344,2]
[381561349,1756284641837,-480.0,0.0002344,2]
[381561351,1756284641846,-480.0,0.0002344,2]
[381561352,1756284641855,-480.0,0.0002344,2]
[381561354,1756284641864,-480.0,0.0002344,2]
[381561356,1756284641873,-480.0,0.0002344,2]
[381561358,1756284641883,-900.75,0.0002344,2]
[381561360,1756284641892,-480.0,0.0002344,2]
[381561362,1756284641901,-480.0,0.0002344,2]
[381561363,1756284641911,-480.0,0.0002344,2]
[381561365,1756284641921,-480.0,0.0002344,2]
[381561367,1756284641932,-480.0,0.0002344,2]
[381561369,1756284641942,-797.64,0.0002344,2]
[381561371,1756284641951,-480.0,0.0002344,2]
[381561373,1756284641961,-480.0,0.0002344,2]
[381561374,1756284641970,-682.46,0.0002344,2]
[381561376,1756284641979,-480.0,0.0002344,2]
[381561378,1756284641989,-480.0,0.0002344,2]
[381561380,1756284641999,-480.0,0.0002344,2]
[381561382,1756284642009,-1837.2,0.0002344,2]
[381561383,1756284642019,-605.14,0.0002344,2]
[381561385,1756284642028,-764.44,0.0002344,2]
[381561387,1756284642038,-480.0,0.0002344,2]
[381561389,1756284642047,-500.0,0.0002344,2]
[381561391,1756284642056,-493.22,0.0002344,2]
[381561392,1756284642066,-1025.99,0.0002344,2]
[381561394,1756284642075,-1041.55,0.0002344,2]
[381561396,1756284642085,-480.0,0.0002344,2]
[381561398,1756284642099,-756.67,0.0002344,2]
[381561400,1756284642108,-481.54373921,0.0002344,2]
[381561402,1756284642117,-704.33,0.0002344,2]
[381561403,1756284642127,-480.0,0.0002344,2]
[381561405,1756284642137,-353.46576601,0.0002344,2]
[381561407,1756284642147,-484.48,0.0002344,2]
[381561409,1756284642156,-795.25,0.0002344,2]
[381561411,1756284642165,-480.0,0.0002344,2]
[381561413,1756284642176,-480.0,0.0002344,2]
[381561414,1756284642186,-480.0,0.0002344,2]
[381561416,1756284642195,-480.0,0.0002344,2]
[381561418,1756284642204,-568.55,0.0002344,2]
[381561420,1756284642213,-480.0,0.0002344,2]
[381561422,1756284642223,-772.12,0.0002344,2]
[381561423,1756284642232,-480.0,0.0002344,2]
[381561425,1756284642243,-1819.08,0.0002344,2]
[381561427,1756284642252,-815.31,0.0002344,2]
[381561429,1756284642262,-809.93,0.0002344,2]
[381561431,1756284642271,-647.0,0.0002344,2]
[381561432,1756284642279,-1723.3,0.0002344,2]
[381561434,1756284642289,-480.0,0.0002344,2]
[381561436,1756284642298,-2074.8,0.0002344,2]
[381561438,1756284642307,-621.67,0.0002344,2]
[381561440,1756284642316,-507.35,0.0002344,2]
[381561442,1756284642325,-480.0,0.0002344,2]
[381561443,1756284642335,-2767.19,0.0002344,2]
[381561445,1756284642344,-480.0,0.0002344,2]
[381561447,1756284642353,-902.12,0.0002344,2]
[381561449,1756284642362,-1017.58,0.0002344,2]
[381561451,1756284642371,-480.0,0.0002344,2]
[381561452,1756284642380,-1042.63,0.0002344,2]
[381561454,1756284642389,-1052.17,0.0002344,2]
[381561456,1756284642399,-480.0,0.0002344,2]
[381561458,1756284642408,-645.51,0.0002344,2]
[381561460,1756284642417,-569.01864648,0.0002344,2]
[381561462,1756284642427,-1154.13,0.0002344,2]
[381561463,1756284642436,-480.0,0.0002344,2]
[381561465,1756284642445,-939.18,0.0002344,2]
[381561467,1756284642454,-809.41,0.0002344,2]
[381561469,1756284642463,-480.0,0.0002344,2]
[381561471,1756284642472,-480.0,0.0002344,2]
[381561472,1756284642482,-480.0,0.0002344,2]
[381561474,1756284642492,-480.0,0.0002344,2]
[381561476,1756284642501,-6603.54,0.0002344,2]
[381561478,1756284642510,-658.49,0.0002344,2]
[381561480,1756284642520,-1174.15,0.0002344,2]
[381561481,1756284642529,-6244.01,0.0002344,2]
[381561483,1756284642539,-480.0,0.0002344,2]
[381561506,1756284642733,-715.18,0.0002344,2]
[381561509,1756284642743,-1636.2,0.0002344,2]
[381561512,1756284642752,-480.0,0.0002344,2]
[381561515,1756284642762,-482.13876623,0.0002344,2]
[381561518,1756284642771,-540.26,0.0002344,2]
[381561519,1756284642781,-480.0,0.0002344,2]
[381561521,1756284642791,-731.94,0.0002344,2]
[381561523,1756284642800,-1802.88,0.0002344,2]
[381561525,1756284642810,-480.0,0.0002344,2]
[381561527,1756284642819,-781.32,0.0002344,2]
[381561529,1756284642829,-3234.33,0.0002344,2]
[381561530,1756284642839,-480.0,0.0002344,2]
[381561533,1756284642851,-933.62,0.0002344,2]
[381561535,1756284642861,-480.0,0.0002344,2]
[381561537,1756284642872,-480.0,0.0002344,2]
[381561539,1756284642881,-480.0,0.0002344,2]
[381561540,1756284642891,-525.76,0.0002344,2]
[381561542,1756284642901,-480.0,0.0002344,2]
[381561543,1756284642910,-639.21,0.0002344,2]
[381561544,1756284642919,-484.88,0.0002344,2]
[381561545,1756284642929,-2772.94,0.0002344,2]
[381561546,1756284642939,-2493.98,0.0002344,2]
[381561547,1756284642948,-480.0,0.0002344,2]
[381561548,1756284642959,-1030.73,0.0002344,2]
[381561549,1756284642968,-480.0,0.0002344,2]
[381561550,1756284642978,-480.0,0.0002344,2]
[381561551,1756284642989,-3554.1,0.0002344,2]
[381561552,1756284642999,-1519.01,0.0002344,2]
[381561553,1756284643008,-480.0,0.0002344,2]
[381561554,1756284643018,-1056.71,0.0002344,2]
[381561555,1756284643027,-480.0,0.0002344,2]
[381561556,1756284643037,-598.74,0.0002344,2]
[381561557,1756284643047,-845.79,0.0002344,2]
[381561558,1756284643056,-480.0,0.0002344,2]
[381561559,1756284643065,-480.0,0.0002344,2]
[381561560,1756284643074,-480.0,0.0002344,2]
[381561561,1756284643084,-480.0,0.0002344,2]
[381561562,1756284643098,-480.0,0.0002344,2]
[381561563,1756284643108,-2741.24,0.0002344,2]
[381561564,1756284643118,-699.05,0.0002344,2]
[381561565,1756284643127,-480.0,0.0002344,2]
[381561566,1756284643137,-509.04,0.0002344,2]
[381561567,1756284643146,-992.31,0.0002344,2]
[381561568,1756284643155,-480.0,0.0002344,2]
[381561569,1756284643164,-480.0,0.0002344,2]
[381561570,1756284643174,-151.0,0.0002344,7]
[381561571,1756284643183,-798.72,0.0002344,2]
[381561572,1756284643192,-151.0,0.0002344,7]
[381561573,1756284643202,-431.20651679,0.0002344,2]
[381561574,1756284643212,-151.0,0.0002344,7]
[381561575,1756284643221,-1326.73,0.0002344,2]
[381561576,1756284643230,-151.0,0.0002344,7]
[381561577,1756284643241,-480.0,0.0002344,2]
[381561578,1756284643253,-853.39,0.0002344,2]
[381561579,1756284643262,-151.0,0.0002344,7]
[381561580,1756284643272,-151.0,0.0002344,7]
[381561581,1756284643282,-1158.64,0.0002344,2]
[381561582,1756284643292,-951.91,0.0002344,2]
[381561583,1756284643303,-480.0,0.0002344,2]
[381561584,1756284643313,-1170.95,0.0002344,2]
[381561585,1756284643322,-10444.4,0.00023463,2]
[381561586,1756284643331,-480.0,0.00023463,2]
[381561587,1756284643341,-5325.71,0.00023463,2]
[381561588,1756284643350,-969.69,0.00023463,2]
[381561589,1756284643359,-9340.02,0.00023463,2]
[381561590,1756284643369,-480.0,0.00023463,2]
[381561591,1756284643378,-1022.69,0.00023463,2]
[381561592,1756284643387,-2576.94,0.00023463,2]
[381561593,1756284643396,-3058.31046799,0.00023541,2]
[381561594,1756284643405,-151.0,0.000236,8]
[381561595,1756284643414,-480.0,0.00023625,2]
[381561596,1756284643423,-1732.12,0.00023625,2]
[381561597,1756284643433,-739.39,0.00023625,2]
[381561598,1756284643442,-2321.17,0.00023625,2]
[381561599,1756284643452,-480.0,0.00023625,2]
[381561600,1756284643461,-480.0,0.00023625,2]
[381561601,1756284643471,-2303.44,0.00023625,2]
[381561602,1756284643480,-2700.34,0.00023625,2]
[381561603,1756284643490,-4014.6,0.00023625,2]
[381561604,1756284643499,-480.0,0.00023625,2]
[381561605,1756284643510,-480.0,0.00023625,2]
[381561606,1756284643519,-4501.99,0.00023625,2]
[381561607,1756284643528,-933.51,0.00023625,2]
[381561608,1756284643538,-480.0,0.00023625,2]
[381561609,1756284643547,-562.37,0.00023625,2]
[381561610,1756284643556,-5472.01,0.00023625,2]
[381561611,1756284643565,-1817.38,0.00023625,2]
[381561612,1756284643574,-721.22,0.00023625,2]
[381561613,1756284643583,-531.27,0.00023625,2]
[381561614,1756284643592,-349.23470122,0.00023625,2]
[381561615,1756284643602,-151.0,0.00023625,7]
[381561616,1756284643611,-480.0,0.00023625,2]
[381561617,1756284643621,-151.0,0.00023625,7]
[381561618,1756284643630,-151.0,0.00023625,7]
[381561619,1756284643639,-151.0,0.00023625,7]
[381561620,1756284643648,-791.08,0.00023625,2]
[381561621,1756284643658,-151.0,0.00023625,7]
[381561622,1756284643667,-151.0,0.00023625,7]
[381561623,1756284643676,-300.0,0.0002363,20]
[381561624,1756284643686,-300.0,0.0002363,20]
[381561625,1756284643696,-300.0,0.0002363,20]
[381561626,1756284643705,-300.0,0.0002363,20]
[381561627,1756284643714,-300.0,0.0002363,20]
[381561628,1756284643723,-300.0,0.0002363,20]
[381561629,1756284643732,-300.0,0.0002363,20]
[381561630,1756284643741,-300.0,0.0002363,20]
[381561631,1756284643750,-300.0,0.0002363,20]
[381561632,1756284643759,-300.0,0.0002363,20]
[381561633,1756284643769,-300.0,0.0002363,20]
[381561634,1756284643779,-300.0,0.0002363,20]
[381561635,1756284643788,-300.0,0.0002363,20]
[381561637,1756284643797,-300.0,0.0002363,20]
[381561638,1756284643806,-300.0,0.0002363,20]
[381561640,1756284643815,-151.0,0.000237,6]
[381561641,1756284643824,-151.0,0.000237,7]
[381561642,1756284643833,-480.0,0.00023712,2]
[381561644,1756284643843,-480.0,0.00023712,2]
[381561646,1756284643852,-480.0,0.00023712,2]
[381561648,1756284643862,-480.0,0.00023712,2]
[381561650,1756284643871,-480.0,0.00023712,2]
[381561652,1756284643880,-480.0,0.00023712,2]
[381561654,1756284643889,-510.60421212,0.00023713,2]
[381561656,1756284643898,-480.0,0.00023713,2]
[381561658,1756284643908,-480.0,0.00023713,2]
[381561660,1756284643918,-1460.05,0.00023713,2]
[381561662,1756284643928,-480.0,0.00023713,2]
[381561664,1756284643938,-480.0,0.00023713,2]
[381561666,1756284643948,-480.0,0.00023713,2]
[381561668,1756284643958,-480.0,0.00023713,2]
[381561670,1756284643967,-480.0,0.00023713,2]
[381561672,1756284643977,-480.0,0.00023713,2]
[381561674,1756284643986,-480.0,0.00023713,2]
[381561676,1756284643998,-1837.2,0.00023713,2]
[381561678,1756284644007,-605.14,0.00023713,2]
[381561680,1756284644016,-480.0,0.00023713,2]
[381561682,1756284644026,-493.22,0.00023713,2]
[381561684,1756284644036,-480.0,0.00023713,2]
[381561686,1756284644045,-756.67,0.00023713,2]
[381561688,1756284644054,-480.0,0.00023713,2]
[381561690,1756284644063,-480.0,0.00023713,2]
[381561692,1756284644072,-484.48,0.00023713,2]
[381561694,1756284644081,-480.0,0.00023713,2]
[381561696,1756284644093,-480.0,0.00023713,2]
[381561698,1756284644103,-480.0,0.00023713,2]
[381561700,1756284644112,-480.0,0.00023713,2]
[381561702,1756284644121,-480.0,0.00023713,2]
[381561704,1756284644131,-815.31,0.00023713,2]
[381561706,1756284644140,-809.93,0.00023713,2]
[381561708,1756284644149,-507.35,0.00023713,2]
[381561710,1756284644159,-2767.19,0.00023713,2]
[381561712,1756284644172,-1042.63,0.00023713,2]
[381561714,1756284644182,-480.0,0.00023713,2]
[381561716,1756284644191,-645.51,0.00023713,2]
[381561718,1756284644200,-611.26,0.00023713,2]
[381561720,1756284644210,-939.18,0.00023713,2]
[381561722,1756284644219,-809.41,0.00023713,2]
[381561724,1756284644228,-6603.54,0.00023713,2]
[381561726,1756284644238,-658.49,0.00023713,2]
[381561728,1756284644248,-480.0,0.00023713,2]
[381561730,1756284644258,-480.0,0.00023713,2]
[381561732,1756284644267,-6244.01,0.00023713,2]
[381561734,1756284644277,-1384.25,0.00023713,2]
[381561736,1756284644286,-731.94,0.00023713,2]
[381561738,1756284644296,-1802.88,0.00023713,2]
[381561740,1756284644306,-432.75125563,0.00023713,2]
[381561742,1756284644316,-480.0,0.00023713,2]
[381561744,1756284644325,-480.0,0.00023713,2]
[381561746,1756284644335,-2127.62,0.00023713,2]
[381561748,1756284644344,-933.62,0.00023713,2]
[381561750,1756284644353,-480.0,0.00023713,2]
[381561752,1756284644362,-639.21,0.00023713,2]
[381561754,1756284644372,-165.24187,0.00023713,7]
[381561756,1756284644382,-165.24187,0.00023713,7]
[381561759,1756284644392,-165.24187,0.00023713,7]
[381561761,1756284644402,-1055.26907,0.00023713,7]
[381561763,1756284644414,-151.0,0.00023713,7]
[381561765,1756284644424,-165.24187,0.00023713,7]
[381561767,1756284644433,-1055.26907,0.00023713,7]
[381561769,1756284644442,-151.0,0.00023713,7]
[381561771,1756284644452,-3109.7,0.00023713,2]
[381561773,1756284644462,-243.464186,0.00023713,7]
[381561775,1756284644471,-1055.26907,0.00023713,7]
[381561777,1756284644481,-151.0,0.00023713,7]
[381561779,1756284644490,-151.0,0.00023713,7]
[381561781,1756284644499,-1055.26907,0.00023713,7]
[381561783,1756284644508,-243.464186,0.00023713,7]
[381561785,1756284644518,-151.0,0.00023713,7]
[381561787,1756284644528,-243.464186,0.00023713,7]
[381561789,1756284644537,-243.464186,0.00023713,7]
[381561791,1756284644546,-183.467516,0.00023713,7]
[381561793,1756284644556,-480.0,0.00023713,2]
[381561795,1756284644565,-151.0,0.00023713,7]
[381561797,1756284644574,-151.0,0.00023713,7]
[381561799,1756284644583,-151.0,0.00023713,7]
[381561801,1756284644592,-151.0,0.00023713,7]
[381561803,1756284644601,-4787.12,0.00023713,2]
[381561805,1756284644610,-480.0,0.00023713,2]
[381561806,1756284644620,-1056.71,0.00023713,2]
[381561808,1756284644628,-480.0,0.00023713,2]
[381561810,1756284644638,-480.0,0.00023713,2]
[381561812,1756284644647,-2741.24,0.00023713,2]
[381561815,1756284644657,-151.0,0.00023713,7]
[381561817,1756284644666,-1100.177715,0.00023713,7]
[381561819,1756284644675,-1100.177715,0.00023713,7]
[381561821,1756284644684,-1100.177715,0.00023713,7]
[381561823,1756284644694,-1100.177715,0.00023713,7]
[381561825,1756284644703,-480.0,0.00023713,2]
[381561827,1756284644712,-197.051389,0.00023713,7]
[381561829,1756284644721,-197.051389,0.00023713,7]
[381561831,1756284644731,-197.051389,0.00023713,7]
[381561833,1756284644739,-197.051389,0.00023713,7]
[381561835,1756284644748,-1326.73,0.00023713,2]
[381561836,1756284644758,-480.0,0.00023713,2]
[381561839,1756284644768,-151.0,0.00023713,7]
[381561841,1756284644777,-151.0,0.00023713,7]
[381561843,1756284644787,-480.0,0.00023713,2]
[381561845,1756284644796,-1170.95,0.00023713,2]
[381561847,1756284644805,-480.0,0.00023714,2]
[381561849,1756284644815,-480.0,0.00023714,2]
[381561851,1756284644824,-831.06,0.00023714,2]
[381561853,1756284644833,-480.0,0.00023714,2]
[381561855,1756284644843,-480.0,0.00023714,2]
[381561857,1756284644852,-900.75,0.00023714,2]
[381561859,1756284644862,-480.0,0.00023714,2]
[381561861,1756284644871,-480.0,0.00023714,2]
[381561863,1756284644880,-480.0,0.00023714,2]
[381561865,1756284644889,-480.0,0.00023714,2]
[381561867,1756284644899,-797.64,0.00023714,2]
[381561869,1756284644909,-682.46,0.00023714,2]
[381561871,1756284644919,-480.0,0.00023714,2]
[381561873,1756284644928,-764.44,0.00023714,2]
[381561875,1756284644937,-500.0,0.00023714,2]
[381561877,1756284644947,-1025.99,0.00023714,2]
[381561879,1756284644956,-1041.55,0.00023714,2]
[381561881,1756284644965,-704.33,0.00023714,2]
[381561883,1756284644975,-795.25,0.00023714,2]
[381561885,1756284644985,-480.0,0.00023714,2]
[381561887,1756284644995,-568.55,0.00023714,2]
[381561889,1756284645005,-772.12,0.00023714,2]
[381561891,1756284645014,-1819.08,0.00023714,2]
[381561892,1756284645024,-647.0,0.00023714,2]
[381561894,1756284645033,-1723.3,0.00023714,2]
[381561896,1756284645042,-480.0,0.00023714,2]
[381561898,1756284645051,-2074.8,0.00023714,2]
[381561900,1756284645061,-621.67,0.00023714,2]
[381561903,1756284645073,-480.0,0.00023714,2]
[381561905,1756284645082,-269.25690607,0.00023714,2]
[381561907,1756284645096,-902.12,0.00023714,2]
[381561909,1756284645105,-1017.58,0.00023714,2]
[381561911,1756284645115,-480.0,0.00023714,2]
[381561913,1756284645124,-1052.17,0.00023714,2]
[381561915,1756284645134,-1154.13,0.00023714,2]
[381561917,1756284645143,-480.0,0.00023714,2]
[381561919,1756284645152,-480.0,0.00023714,2]
[381561921,1756284645163,-480.0,0.00023714,2]
[381561922,1756284645173,-480.0,0.00023714,2]
[381561924,1756284645183,-480.0,0.00023714,2]
[381561926,1756284645192,-1174.15,0.00023714,2]
[381561928,1756284645202,-480.0,0.00023714,2]
[381561930,1756284645211,-1636.2,0.00023714,2]
[381561933,1756284645221,-715.18,0.00023714,2]
[381561935,1756284645231,-480.0,0.00023714,2]
[381561937,1756284645240,-540.26,0.00023714,2]
[381561939,1756284645250,-480.0,0.00023714,2]
[381561941,1756284645259,-480.0,0.00023714,2]
[381561943,1756284645268,-480.0,0.00023714,2]
[381561945,1756284645277,-781.32,0.00023714,2]
[381561947,1756284645286,-3234.33,0.00023714,2]
[381561949,1756284645296,-480.0,0.00023714,2]
[381561951,1756284645305,-480.0,0.00023714,2]
[381561952,1756284645314,-525.76,0.00023714,2]
[381561954,1756284645323,-480.0,0.00023714,2]
[381561956,1756284645332,-484.88,0.00023714,2]
[381561958,1756284645342,-2772.94,0.00023714,2]
[381561960,1756284645351,-2493.98,0.00023714,2]
[381561962,1756284645360,-480.0,0.00023714,2]
[381561964,1756284645369,-1030.73,0.00023714,2]
[381561966,1756284645379,-480.0,0.00023714,2]
[381561968,1756284645388,-3554.1,0.00023714,2]
[381561970,1756284645398,-1519.01,0.00023714,2]
[381561972,1756284645407,-480.0,0.00023714,2]
[381561974,1756284645416,-598.74,0.00023714,2]
[381561976,1756284645425,-845.79,0.00023714,2]
[381561978,1756284645435,-480.0,0.00023714,2]
[381561980,1756284645445,-480.0,0.00023714,2]
[381561982,1756284645454,-480.0,0.00023714,2]
[381561984,1756284645464,-699.05,0.00023714,2]
[381561986,1756284645473,-480.0,0.00023714,2]
[381561988,1756284645483,-509.04,0.00023714,2]
[381561990,1756284645492,-992.31,0.00023714,2]
[381561992,1756284645501,-480.0,0.00023714,2]
[381561994,1756284645510,-151.0,0.00023714,7]
[381561996,1756284645519,-798.72,0.00023714,2]
[381561998,1756284645527,-151.0,0.00023714,7]
[381562000,1756284645537,-151.0,0.00023714,7]
[381562002,1756284645546,-151.0,0.00023714,7]
[381562004,1756284645555,-853.39,0.00023714,2]
[381562006,1756284645564,-263.097212,0.00023714,7]
[381562008,1756284645574,-1158.64,0.00023714,2]
[381562010,1756284645583,-151.0,0.00023714,7]